[Event "87th Tata Steel Masters 2025"]
[White "Van Foreest,Jorden"]
[Black "Gukesh,Dommaraju"]
[Site "Wijk aan Zee"]
[Round "12.4"]
[Annotator "TA"]
[Result "1/2-1/2"]
[Date "2025.02.01"]
[WhiteElo "2680"]
[BlackElo "2777"]
[PlyCount "101"]
[TimeControl "60"]

{[%evp 13,101,12,14,0,7,0,0,16,10,-5,20,0,82,19,14,0,55,0,46,48,28,6,0,-31,-35,-79,-78,-72,-78,-88,-89,-81,-81,-84,-59,-77,-23,-46,-28,-25,-20,-30,-33,-42,-31,-35,-20,-28,0,-9,0,0,0,0,0,0,14,9,6,0,0,0,0,-5,0,-202,-198,-204,-204,-201,-180,-173,8,18,14,22,24,25,40,41,165,0,0,0,0,0,0,0,0,0]} 1. d4 {[%emt 0:0:7]} d5 {[%emt 0:0:8]} 2. c4 {[%emt 0:0:7]} e6 {[%emt 0:0:6]} 3. Nc3 {[%emt 0:0:40]} Be7 {[%emt 0:0:10]} 4. cxd5 {[%emt 0:1:35]} exd5 {[%emt 0:0:6]} 5. Bf4 {[%emt 0:0:19]} c6 {[%emt 0:0:7]} 6. e3 {[%emt 0:3:15]} Bf5 {[%emt 0:0:7]} 7. Nge2 $1 {[%emt 0:1:49][%mdl 4] is now more promising than 7.g4.} Nd7 {[%emt 0:0:8]} 8. Rc1 {[%emt 0:4:37] D31: Queen's Gambit Declined: Semi-Slav without ...Nf6 (+ Marshall Gambit and Noteboom) and Exchange Variation lines without ...Nf6.} Ngf6 {[%emt 0:13:29]} 9. Ng3 {[%emt 0:1:44]} Bg6 {[%emt 0:0:49]} 10. h4 {[%emt 0:1:54]} h5 {[%emt 0:1:38]} 11. Be2 {[%emt 0:6:47]} Qb6 {[%emt 0:8:21]} 12. Qd2 {[%emt 0:13:1]} Ng4 $146 {[%emt 0:1:19]} (12... Qd8 $11 )(12... Kf8 13. a3 Ne8 14. e4 dxe4 15. d5 Rd8 16. b4 Ndf6 17. Na4 Rxd5 18. Nxb6 Rxd2 19. Bxd2 axb6 {1-0 Volkov,S (2613)-Burmakin,V (2575) Ortisei Server24 op 2nd 2013 (7)} )13. Bg5 {[%emt 0:12:11]} (13. e4 $16 )Bd6 $11 {[%emt 0:8:59]} 14. Bf4 {[%emt 0:1:28]} Be7 {[%emt 0:2:56]} 15. Bg5 {[%emt 0:6:53]} (15. e4 $14 )Qd8 {[%emt 0:0:11]} (15... Bd6 $11 )16. f3 $14 {[%emt 0:1:25]} Ngf6 {[%emt 0:2:16]} 17. O-O {[%emt 0:6:56]} Nh7 {[%emt 0:7:3]} 18. Bxe7 {[%emt 0:14:0]} Qxe7 {[%emt 0:0:7]} 19. f4 {[%emt 0:0:36]} Qxh4 {[%emt 0:2:42]} 20. Qe1 {[%emt 0:0:41]} f5 $1 {[%emt 0:7:33]} 21. Nxh5 {[%emt 0:3:38]} Qe7 {[%emt 0:2:27]} 22. Bf3 {[%emt 0:0:24]} (22. Qg3 $2 Nhf8 23. Nxg7+ (23. Qh3 $2 Bxh5 24. Bd3 g6 $19 )Qxg7 $19 )Bxh5 {[%emt 0:8:59]} 23. Bxh5+ {[%emt 0:0:7]} Kf8 {[%emt 0:0:6]} 24. Nd1 {[%emt 0:6:50][%cal Yc3d1,Yd1f2,Yf2d3,Yd3e5][%mdl 32]} Nb6 {[%emt 0:9:43]} (24... Kg8 $17 )25. Bg6 $11 {[%emt 0:3:52]} Qe6 {[%emt 0:0:33]} 26. Qb4+ {[%emt 0:0:30]} Kg8 {[%emt 0:0:8]} 27. Bxh7+ {[%emt 0:0:4]} Rxh7 {[%emt 0:0:6]} 28. Rf3 {[%emt 0:0:17]} Re8 {[%emt 0:7:13]} 29. Nf2 {[%emt 0:0:24]} Nc4 {[%emt 0:4:23]} 30. Nd3 {[%emt 0:4:57]} (30. Qxb7 g5 31. Qa6 gxf4 $17 (31... g4 32. Rg3 $17 ))Rh4 {[%emt 0:11:42]} (30... Nxe3 $2 31. Re1 $18 (31. Qxb7 Nxg2 32. Rxc6 Qe4 $15 ))31. Ne5 {[%emt 0:2:38]} b5 {[%emt 0:6:44]} (31... Nd6 {simplifies} 32. Rh3 Rxh3 33. gxh3 Qf6 )32. Qc5 {[%emt 0:5:45][%csl Ya7,Yc6]} Qh6 {[%emt 0:1:0]} 33. Kf2 {[%emt 0:1:42]} Re6 {[%emt 0:0:0]} 34. Rxc4 {[%emt 0:1:14]} dxc4 {[%emt 0:1:42]} 35. Qxa7 {[%emt 0:0:9]} Qf6 $1 {[%emt 0:3:29]} 36. Rg3 {[%emt 0:0:14]} Rh1 {[%emt 0:0:57]} 37. Nd7 {[%emt 0:0:35]} Qd8 {[%emt 0:0:23]} 38. Ne5 {[%emt 0:1:3][%csl Gg3][%cal Ra7g7]} Re7 {[%emt 0:0:1]} 39. Qa6 {[%emt 0:1:31] [#]} (39. Qa3 $1 $11 {and White stays safe.} Re6 40. Qa7 )Rxe5 $1 $19 {[%emt 0:1:36]} 40. fxe5 {[%emt 0:0:41][%mdl 4096] Endgame [#] KQR-KQR. White is a pawn up.} f4 $1 {[%emt 0:0:11][%mdl 512]} 41. Rh3 {[%emt 0:17:10]} (41. exf4 Qxd4+ 42. Re3 Qxf4+ (42... Qxb2+ 43. Kf3 $15 )43. Ke2 Qf1+ 44. Kd2 Qc1+ (44... Qxg2+ $2 45. Kc3 $19 )45. Ke2 Re1+ (45... Qxb2+ $2 46. Kf3 $19 )46. Kf3 Rxe3+ (46... Qxe3+ 47. Kg4 Qe4+ 48. Kg5 Qxg2+ 49. Kf5 Qh3+ 50. Kf4 Rf1+ 51. Kg5 Qg3+ 52. Kh5 Rh1# )47. Kg4 Qd1+ (47... Qxb2 48. Qc8+ Kh7 49. Qf5+ Kg8 50. Qe6+ Kf8 51. Qc8+ Ke7 52. Qc7+ Ke8 53. Qxc6+ Kd8 54. Qd6+ Kc8 55. Qc6+ Kb8 56. Qb6+ Ka8 57. Qxe3 $11 )48. Kf5 Qd7+ 49. e6 Qxe6+ 50. Kg5 Qe5+ 51. Kh4 Qg3+ 52. Kh5 Re5# )(41. Rg4 fxe3+ 42. Kxe3 Qf8 )fxe3+ {[%emt 0:4:13]} 42. Ke2 {[%emt 0:0:10]} Rb1 {[%emt 0:11:21]} (42... Rxh3 $19 43. gxh3 Qxd4 44. Qc8+ Kf7 45. Qf5+ Ke7 46. Qg5+ Kf8 (46... Ke6 47. Qg6+ Kxe5 48. Qxg7+ Kd5 49. Qg5+ Kd6 50. Qd8+ Ke5 51. Qxd4+ Kxd4 52. a3 $11 )47. Qf5+ Ke7 )43. Qxc6 $11 {[%emt 0:5:36]} Rxb2+ {[%emt 0:6:23]} 44. Kf3 $1 {[%emt 0:0:22] Threatening mate with Qe6+. Really sharp!} Qf8+ {[%emt 0:2:17]} ({Weaker is} 44... Qxd4 45. Qe8# )45. Ke4 {[%emt 0:1:15]} Rf2 $1 {[%emt 0:0:14] Strongly threatening ...Qf4+.} 46. Qe6+ {[%emt 0:12:54]} Rf7 {[%emt 0:8:16] [#]} (46... Qf7 $14 47. Qc8+ Qf8 48. Qxf8+ Kxf8 49. Rh8+ Kf7 50. Kxe3 Rxg2 )47. Rxe3 $2 {[%emt 0:0:25]} (47. Kxe3 Qe7 48. Qxe7 Rxe7 $16 )({White has to play} 47. Qg6 $1 $18 {[%csl Gh3][%cal Rg6h7]} Qa8+ 48. d5 )Qa8+ {[%emt 0:0:8] The position is equal.} 48. d5 {[%emt 0:0:28] aiming for Rf3.} Qxa2 {[%emt 0:0:36]} 49. Qc8+ {[%emt 0:3:13]} Rf8 {[%emt 0:0:3]} 50. Qe6+ {[%emt 0:0:5]} Rf7 {[%emt 0:0:2]} 51. Qc8+ {[%emt 0:0:10] Weighted Error Value: White=0.19 (very precise) /Black=0.17 (very precise)   Loses game:     	White=1     	---        Missed win:     	White=1     	Black=1      Mistake:       	White=2     	Black=4      Inaccurate:     	White=2     	Black=1      OK:         	White=20    	Black=13     Best:        	White=3     	Black=9      Strong:       	White=1     	Black=3      Brilliant:      	---       	Black=2} (51. Rf3 $5 Qb1+ $8 52. Kd4 Qg1+ 53. Kc3 Qe1+ 54. Kb2 Qd2+ 55. Ka3 Qa5+ 56. Kb2 Qd2+ $11 )1/2-1/2

[Event "87th Tata Steel Masters 2025"]
[White "Erigaisi,Arjun Kumar"]
[Black "Abdusattorov,Nodirbek"]
[Site "Wijk aan Zee"]
[Round "12.5"]
[Annotator "TA"]
[Result "1-0"]
[Date "2025.02.01"]
[WhiteElo "2801"]
[BlackElo "2768"]
[PlyCount "91"]
[TimeControl "60"]

{[%evp 16,91,8,9,38,37,37,33,35,37,39,36,63,55,64,47,58,55,52,51,54,45,59,53,47,53,55,50,50,53,57,53,55,52,316,336,353,357,363,373,347,363,380,371,371,372,427,418,417,99,92,97,104,103,102,101,106,120,401,389,404,406,381,396,363,379,443,443,29944,12847,7237,7067,7540,7540,6647,7540,1378,1358]} 1. d4 {[%emt 0:0:6]} Nf6 {[%emt 0:0:15]} 2. c4 {[%emt 0:0:6]} e6 {[%emt 0:0:19]} 3. Nc3 {[%emt 0:0:7]} Bb4 {[%emt 0:0:14]} 4. Qc2 {[%emt 0:0:7]} d6 {[%emt 0:1:0]} 5. e3 {[%emt 0:0:39]} O-O {[%emt 0:1:6]} 6. Bd3 {[%emt 0:0:34]} c5 {[%emt 0:3:44]} 7. Nf3 {[%emt 0:4:5]} Nc6 {[%emt 0:4:45]} 8. O-O {[%emt 0:0:39]} Bxc3 {[%emt 0:0:39]} 9. Qxc3 {[%emt 0:0:0]} Qe7 {[%emt 0:4:49] E38: Nimzo-Indian: Classical: 4...c5.} 10. dxc5 {[%emt 0:5:22]} dxc5 {[%emt 0:0:0]} 11. Ne5 {[%emt 0:2:44]} Nxe5 {[%emt 0:2:2] White is slightly better.} 12. Qxe5 {[%emt 0:0:0]} Rd8 {[%emt 0:4:20]} 13. Bc2 {[%emt 0:5:20]} Ng4 $146 {[%emt 0:3:49]} (13... b6 14. b3 Bb7 15. Bb2 Qd6 16. Qg5 h6 17. Qh4 e5 18. Rad1 Qe6 19. f3 Rxd1 20. Rxd1 {1-0 Elmali,T (2102)-Hochhuth,A (1793) Bremen-ch 2019 (3.3)} )14. Qg3 {[%emt 0:0:0]} e5 {[%emt 0:2:5]} 15. f3 {[%emt 0:9:16]} Nf6 {[%emt 0:8:41]} 16. b3 {[%emt 0:6:0]} Nh5 {[%emt 0:0:2]} 17. Qf2 {[%emt 0:0:0]} Bd7 {[%emt 0:3:46]} 18. Bb2 {[%emt 0:3:36]} Bc6 {[%emt 0:0:47]} 19. Rad1 {[%emt 0:3:20]} h6 {[%emt 0:14:17]} 20. h3 {[%emt 0:1:40]} Nf6 {[%emt 0:0:0]} 21. Qg3 {[%emt 0:11:11]} Rxd1 {[%emt 0:0:0]} 22. Rxd1 {[%emt 0:0:8]} Re8 {[%emt 0:2:30]} 23. a4 {[%emt 0:7:26]} Nh5 {[%emt 0:0:0]} 24. Qf2 {[%emt 0:1:33]} Qg5 $2 {[%emt 0:0:0][%mdl 8192]} (24... e4 $14 )25. g4 $1 $18 {[%emt 0:9:23]} f5 {[%emt 0:15:6]} 26. h4 {[%emt 0:8:57][%cal Yh3h4,Yh4g5][%mdl 32]} (26. Bxf5 Rf8 27. Be6+ Kh7 $18 )Qg6 {[%emt 0:1:42]} 27. Bxf5 {[%emt 0:0:59]} Qf7 {[%emt 0:1:36]} 28. Rd6 {[%emt 0:2:38]} Nf6 {[%emt 0:3:29]} 29. g5 {[%emt 0:11:53]} hxg5 {[%emt 0:0:5]} 30. hxg5 {[%emt 0:0:0]} Nh5 {[%emt 0:1:58]} 31. Bg4 {[%emt 0:1:25]} Qe7 {[%emt 0:1:38]} 32. Rxc6 {[%emt 0:0:0]} (32. Rg6 $18 {is the precise move to win.} )bxc6 $16 {[%emt 0:0:0]} 33. Bxh5 {[%emt 0:0:0]} Qxg5+ {[%emt 0:0:0]} 34. Bg4 {[%emt 0:0:7]} e4 {[%emt 0:1:57][%cal Ye5e4,Ye4f3][%mdl 32] ...exf3 would now be deadly.} 35. Kf1 $1 {[%emt 0:2:51] And now Qg2 would win.} Qg6 {[%emt 0:8:28]} 36. Qc2 {[%emt 0:5:27]} Rf8 $2 {[%emt 0:0:0][%mdl 8192] [#]} (36... Re7 $16 37. Ba3 Qh6 38. Bxc5 (38. fxe4 $2 Qh1+ 39. Ke2 Qg2+ 40. Kd1 Qxg4+ 41. Kc1 Qg1+ 42. Qd1 Qxe3+ 43. Kb2 Rxe4 $19 )exf3 (38... Qh1+ 39. Ke2 $18 )39. Bxf3 (39. Bxe7 $2 Qh1+ 40. Kf2 Qg2+ 41. Ke1 Qxc2 $19 )Rf7 )37. Qg2 $1 $18 {[%emt 0:5:9]} (37. Ke1 Qh6 38. Qxe4 (38. fxe4 $2 Qh4+ 39. Kd2 Qxg4 $19 )Qh1+ 39. Ke2 (39. Kd2 Rd8+ 40. Bd4 cxd4 $11 )Qg2+ 40. Ke1 Qg1+ 41. Ke2 (41. Kd2 Rd8+ $11 )Qg2+ 42. Ke1 Qg1+ 43. Ke2 Qg2+ $11 )exf3 {[%emt 0:0:0] [#]} 38. Be6+ $1 {[%emt 0:0:0][%mdl 512]} Kh7 {[%emt 0:0:0]} 39. Qh3+ {[%emt 0:0:0]} Qh6 {[%emt 0:0:0]} 40. Kf2 {[%emt 0:0:0]} Rb8 41. Bf5+ {[%emt 0:8:3] A strong pair of Bishops.} (41. Kxf3 Qxh3+ 42. Bxh3 Rxb3 $16 )g6 {[%emt 0:4:26] [#]} (41... Kg8 $18 42. Qxh6 (42. Kxf3 Qxh3+ 43. Bxh3 Rxb3 $18 )(42. Qxf3 Rxb3 43. Bc1 Qh4+ 44. Ke2 Qxc4+ 45. Kf2 Rb4 $11 )gxh6 )42. Bxg6+ $1 {[%emt 0:0:20][%mdl 512]} Kxg6 {[%emt 0:44:4] White is clearly winning.} 43. Qe6+ {[%emt 0:0:22]} (43. Qxf3 $2 Rf8 $19 (43... Rxb3 44. Qxc6+ Kh7 45. Qd7+ Kg6 46. Qe6+ Kg5 47. Qe7+ Kg6 48. Qe4+ Kf7 49. Qf5+ Ke8 50. Qe4+ Kf7 51. Qf5+ Ke8 52. Qe4+ Kd7 53. Be5 $11 )(43... Qh2+ 44. Ke1 $11 ))Kh5 {[%emt 0:0:25] [#]} 44. Bf6 $1 {[%emt 0:46:30]} Qh7 {[%emt 0:0:8] Against Qf5+} 45. Qe5+ {[%emt 0:1:22]} ({Not} 45. Qxc6 Qc2+ (45... Rxb3 46. Qxc5+ Kg6 47. Qd6 $14 )46. Kxf3 Qf5+ (46... Qxb3 $2 {too greedy.} 47. Qd5+ Kg6 48. Be5 $16 )47. Ke2 Rf8 (47... Rxb3 48. Qe8+ Kh6 49. Qf8+ Kg6 50. Qg7+ Kh5 51. Qh8+ Kg6 52. Qg7+ Kh5 53. Qh8+ Kg6 54. Qg7+ $11 )48. Qh1+ Kg6 $15 )Kg6 {[%emt 0:0:6]} 46. Qxb8 {[%emt 0:6:6] Weighted Error Value: White=0.12 (very precise) /Black=0.42  Loses game:     	---       	Black=2      Missed win:     	White=1     	---        Mistake:       	---       	Black=1      Inaccurate:     	---       	Black=1      OK:         	White=14    	Black=13     Best:        	White=3     	Black=6      Strong:       	White=3     	---        Brilliant:      	White=2     	---} 1-0

[Event "87th Tata Steel Masters 2025"]
[White "Warmerdam,Max"]
[Black "Fedoseev,Vladimir"]
[Site "Wijk aan Zee"]
[Round "12.6"]
[Annotator "TA"]
[Result "0-1"]
[Date "2025.02.01"]
[WhiteElo "2646"]
[BlackElo "2717"]
[PlyCount "66"]
[TimeControl "60"]

{[%evp 9,66,0,0,5,12,0,0,0,0,0,4,0,0,0,0,-5,9,11,21,0,0,0,0,2,-8,-4,0,-8,-11,-15,-16,-12,-7,-10,-9,-6,0,-7,-4,-9,-12,-20,-18,-17,-10,-23,-17,-24,-26,-28,-6,-242,-229,-456,-446,-1552,-1545,-29990,-29991]} 1. c4 {[%emt 0:0:5]} e5 {[%emt 0:1:17]} 2. g3 {[%emt 0:0:14]} d5 {[%emt 0:1:15]} 3. cxd5 {[%emt 0:0:9]} Qxd5 {[%emt 0:0:5]} 4. Nf3 {[%emt 0:0:13][%cal Yg1f3,Yf3d2,Yd2c4][%mdl 32]} Nc6 {[%emt 0:0:3]} 5. d3 {[%emt 0:0:53]} Nf6 {[%emt 0:5:15]} 6. Bg2 {[%emt 0:0:19] A20: English Opening: 1...e5.} Be7 {[%emt 0:2:54]} 7. Nc3 {[%emt 0:4:52]} Qd6 {[%emt 0:0:21]} 8. Bg5 {[%emt 0:1:58] The position is equal.} Nd4 {[%emt 0:4:6]} 9. Nd2 {[%emt 0:5:35]} c6 {[%emt 0:1:23]} 10. O-O {[%emt 0:2:16]} O-O {[%emt 0:2:37]} 11. Nc4 $146 {[%emt 0:8:15]} (11. Rc1 Rd8 12. Nde4 Nxe4 13. Nxe4 Qc7 14. Bxe7 Qxe7 15. e3 Nb5 16. Qe2 Be6 17. a3 {1-0 Faust,D (1760)-Berry,E (2000) FICGS rapid B 000293 email 2018 (1)} )Qc7 {[%emt 0:0:9]} 12. e3 {[%emt 0:0:16]} Nb5 {[%emt 0:4:37]} 13. Bxf6 {[%emt 0:16:58]} Bxf6 {[%emt 0:1:15]} 14. Ne4 {[%emt 0:0:39] a4 is the strong threat.} Be7 {[%emt 0:0:13]} 15. a4 {[%emt 0:11:22]} Nd6 {[%emt 0:0:49]} 16. Nexd6 {[%emt 0:0:32]} Bxd6 {[%emt 0:0:7]} 17. a5 {[%emt 0:3:59][%cal Ya5a6]} Rd8 {[%emt 0:1:52]} 18. Qc2 {[%emt 0:1:36]} a6 {[%emt 0:11:25]} 19. Nb6 {[%emt 0:7:10]} Rb8 {[%emt 0:0:1]} 20. Nxc8 {[%emt 0:0:8]} Rbxc8 {[%emt 0:0:3]} 21. Ra4 {[%emt 0:0:20]} Be7 {[%emt 0:0:5]} 22. Rd1 {[%emt 0:3:38]} Rd6 {[%emt 0:1:1]} 23. Qb3 {[%emt 0:8:44]} Rcd8 {[%emt 0:0:11]} 24. h4 {[%emt 0:1:45]} g6 {[%emt 0:2:12]} 25. Bf3 {[%emt 0:6:49] Opposite bishops and equal position} h5 {[%emt 0:4:36]} 26. Kg2 {[%emt 0:5:38]} Kg7 {[%emt 0:3:30]} 27. Qc3 {[%emt 0:3:56]} Bf6 {[%emt 0:0:16][%cal Ye5e4]} 28. Qc2 {[%emt 0:0:38]} Qd7 {[%emt 0:3:27][%cal Rd6d3]} 29. Rb4 {[%emt 0:0:52]} Be7 {[%emt 0:2:46][%cal Yd6d5]} 30. Qb3 $2 {[%emt 0:2:51] [#] This costs White the game.} (30. d4 $11 {and White is okay.} )Rf6 $1 $19 {[%emt 0:8:53] and ...Qf5 should not be overlooked} 31. Rxb7 $2 {[%emt 0:6:40]} (31. Be4 {keeps fighting.} Bxb4 32. Qxb4 )Qf5 $1 {[%emt 0:0:0]} 32. Be4 {[%emt 0:1:31]} (32. Kg1 $142 Qxf3 33. Rf1 )Qxf2+ {[%emt 0:0:0]} 33. Kh3 {[%emt 0:0:6] [#]} g5 $1 {[%emt 0:9:50] Weighted Error Value: White=0.69/Black=0.02 (flawless)   Loses game:     	White=1     	---        Mistake:       	White=2     	---        Inaccurate:     	White=1     	---        OK:         	White=10    	Black=12     Best:        	---       	Black=2      Strong:       	---       	Black=2} 0-1

[Event "87th Tata Steel Masters 2025"]
[White "Mendonca,Leon Luke"]
[Black "Caruana,Fabiano"]
[Site "Wijk aan Zee"]
[Round "12.7"]
[Annotator "TA"]
[Result "1/2-1/2"]
[Date "2025.02.01"]
[WhiteElo "2639"]
[BlackElo "2803"]
[PlyCount "113"]
[TimeControl "60"]

{[%evp 9,113,12,8,8,10,21,21,14,14,11,26,28,52,52,40,43,44,46,56,59,68,37,67,34,53,20,32,13,16,16,23,37,21,22,53,41,43,51,45,44,39,43,45,37,45,54,41,32,37,54,37,41,43,48,43,18,44,16,24,16,58,60,89,102,74,72,63,55,55,21,21,21,21,21,21,21,21,21,21,21,21,21,30,30,30,30,30,21,21,0,21,5,21,21,21,21,22,21,21,21,21,21,21,21,21,21]} 1. e4 {[%emt 0:0:6]} e5 {[%emt 0:0:5]} 2. Nf3 {[%emt 0:0:7]} Nc6 {[%emt 0:0:4]} 3. Bc4 {[%emt 0:0:24]} Nf6 {[%emt 0:0:6]} 4. d3 {[%emt 0:0:19]} Be7 {[%emt 0:0:6]} 5. Nc3 {[%emt 0:1:48]} O-O {[%emt 0:0:17]} 6. a4 {[%emt 0:0:20] C55: Two Knights: 4 d3, 4 d4 exd4 5 e5 and Max Lange Attack.} Bb4 {[%emt 0:3:25]} 7. O-O $146 {[%emt 0:6:9]} (7. Bd2 d6 8. h3 Bxc3 9. bxc3 Be6 10. Bxe6 fxe6 11. c4 a5 12. O-O b6 13. Ng5 {0-1 Durarbayli,V (2606)-Golubka,P (2452) Titled Arena Mar 6th blitz 2021} )Bxc3 {[%emt 0:0:13]} 8. bxc3 {[%emt 0:0:5]} d6 {[%emt 0:1:23]} 9. Bg5 {[%emt 0:6:20]} Be6 {[%emt 0:1:4]} 10. Bb5 {[%emt 0:20:4]} Ne7 {[%emt 0:26:39][%cal Yc6e7,Ye7g6,Yg6f4][%mdl 32]} 11. Bxf6 {[%emt 0:0:39]} gxf6 {[%emt 0:0:4]} 12. d4 {[%emt 0:0:28]} Ng6 {[%emt 0:0:4]} 13. Re1 {[%emt 0:2:58][%cal Yf1e1,Ye1e3,Ye3g3][%mdl 32]} c6 {[%emt 0:2:47]} 14. Bf1 {[%emt 0:2:30]} Qa5 {[%emt 0:0:45]} 15. Re3 {[%emt 0:3:54]} Kh8 {[%emt 0:20:41]} 16. Nd2 {[%emt 0:4:28]} Rg8 {[%emt 0:0:5]} 17. Rg3 {[%emt 0:15:23]} Nf4 {[%emt 0:9:45]} 18. Nc4 {[%emt 0:1:19]} Qc7 {[%emt 0:12:28]} 19. Ne3 {[%emt 0:0:42]} d5 {[%emt 0:2:5]} 20. exd5 {[%emt 0:23:1]} cxd5 {[%emt 0:0:46] [#]} 21. c4 {[%emt 0:1:37]} exd4 {[%emt 0:12:21]} (21... Qc6 22. dxe5 )22. Qxd4 {[%emt 0:1:1]} Qe5 {[%emt 0:0:3]} 23. Rd1 {[%emt 0:2:56][%cal Ya1d1,Yd1d4,Yd4c4][%mdl 32]} dxc4 {[%emt 0:0:5]} 24. Nxc4 {[%emt 0:4:26]} Qxd4 {[%emt 0:0:5]} 25. Rxd4 {[%emt 0:0:4]} Rxg3 {[%emt 0:0:20]} 26. hxg3 {[%emt 0:2:22]} Ng6 {[%emt 0:0:30]} 27. Nd6 {[%emt 0:0:57]} b6 {[%emt 0:0:16]} 28. Bc4 {[%emt 0:2:15]} Kg7 {[%emt 0:3:29]} 29. Bxe6 {[%emt 0:0:33]} fxe6 $14 {[%emt 0:0:3][%mdl 4096] Endgame KRN-KRN} 30. Rc4 {[%emt 0:1:19]} f5 {[%emt 0:7:49]} 31. Rc7+ {[%emt 0:0:23]} Kf6 {[%emt 0:0:3]} 32. Nc8 {[%emt 0:4:34]} (32. Rxh7 Ne5 33. f4 Ng4 34. Rf7+ Kg6 $16 )Ne5 {[%emt 0:0:55]} 33. f3 {[%emt 0:0:48]} h5 {[%emt 0:1:31]} 34. Nxa7 {[%emt 0:0:31]} Rd8 {[%emt 0:0:32]} 35. Nc8 {[%emt 0:0:45]} Rd7 {[%emt 0:5:49]} 36. Rc3 {[%emt 0:0:52]} ({Don't take} 36. Rxd7 Nxd7 37. f4 Kf7 38. Nd6+ Ke7 $18 )Rd1+ {[%emt 0:0:32]} 37. Kh2 {[%emt 0:1:29]} Nd7 {[%emt 0:0:44]} 38. Rc6 {[%emt 0:0:59]} Rd4 {[%emt 0:0:35]} 39. Nxb6 {[%emt 0:0:29]} Nxb6 {[%emt 0:0:5]} 40. Rxb6 {[%emt 0:0:4] And now a5 would win.} Rxa4 {[%emt 0:0:3] KR-KR. White is a pawn up.} 41. Rc6 {[%emt 0:1:31]} Ra1 {[%emt 0:9:40]} 42. c4 {[%emt 0:0:24][%cal Yc2c4,Yc4c5,Yc5c6,Yc6c7][%mdl 32]} Rc1 {[%emt 0:1:49]} 43. c5 {[%emt 0:0:5]} Kf7 {[%emt 0:0:53]} 44. f4 {[%emt 0:0:24]} Kf6 {[%emt 0:0:53]} 45. Rc8 {[%emt 0:0:34]} Kg7 {[%emt 0:0:22]} 46. c6 {[%emt 0:0:5]} Kf7 {[%emt 0:0:25]} 47. c7 {[%emt 0:0:51]} (47. Rh8 Rxc6 48. Rxh5 Rc3 49. Rh7+ )Kg7 {[%emt 0:0:3] [#] Inhibits Rh8.} 48. g4 $1 {[%emt 0:1:12]} hxg4 {[%emt 0:1:37] The position is equal.} 49. Kg3 {[%emt 0:3:20]} Rc2 {[%emt 0:0:17]} 50. Kh4 {[%emt 0:0:6]} Rc3 {[%emt 0:0:17]} 51. Kg5 {[%emt 0:0:13]} Rc1 {[%emt 0:0:15]} 52. g3 {[%emt 0:0:15]} (52. Re8 {simplifies} Rxc7 53. Rxe6 Rc2 54. g3 )Rc2 {[%emt 0:0:7]} 53. Re8 {[%emt 0:0:5]} Rxc7 {[%emt 0:0:3]} 54. Rxe6 {[%emt 0:0:4]} Rc3 $1 {[%emt 0:0:7]} 55. Kxf5 {[%emt 0:0:40]} Rxg3 {[%emt 0:0:3]} 56. Rg6+ {[%emt 0:0:3]} Kf7 {[%emt 0:0:3]} 57. Rxg4 {[%emt 0:0:3] Weighted Error Value: White=0.06 (flawless) /Black=0.06 (flawless)   Inaccurate:     	White=5     	Black=4      OK:         	White=27    	Black=25     Best:        	---       	Black=3      Strong:       	---       	Black=1} 1/2-1/2